bitfinex/quotes_ETHUSD_20260120
["timestamp","ask_amount","ask_price","bid_price","bid_amount"]
[1768948080771,1.0370895,2984.7,2984.1,0.83468532]
[1768948084019,1.0370895,2984.9,2984.1,0.83468532]
[1768948084381,1.0370895,2984.9,2984.3,6.30475239]
[1768948084581,1.0370895,2984.9,2984.3,5.46141522]
[1768948085282,1.0370895,2984.9,2983.8,0.84743838]
[1768948085505,1.0370895,2984.7,2983.8,0.84743838]
[1768948087042,1.26619845,2984.8,2984.0,0.84956594]
[1768948087422,1.26619845,2984.8,2983.8,0.002]
[1768948088053,1.26619845,2984.8,2983.8,0.85359423]
[1768948088207,1.0370895,2984.6,2983.8,0.85359423]
[1768948088382,1.0370895,2984.6,2984.0,0.85159423]
[1768948090413,1.0370895,2984.6,2983.9,6.3169964]
[1768948090619,1.0370895,2984.6,2983.9,0.85558118]
[1768948090789,1.7370895,2984.4,2983.9,0.85558118]
[1768948090988,1.91079845,2984.4,2983.9,0.85558118]
[1768948091223,1.91079845,2984.4,2983.8,0.002]
[1768948091224,1.0370895,2984.3,2983.6,0.84555261]
[1768948091426,1.0370895,2984.3,2983.5,0.0209092]
[1768948091633,1.0370895,2984.3,2983.5,0.86646181]
[1768948091927,1.0370895,2984.1,2983.5,0.0209092]
[1768948092149,1.0370895,2984.1,2983.5,0.8683985]
[1768948092281,1.0370895,2984.0,2983.5,0.0209092]
[1768948092598,0.87370895,2984.4,2984.0,0.8474893]
[1768948092920,1.21079845,2984.4,2983.8,0.8474893]
[1768948093795,0.17370895,2984.4,2983.8,0.8474893]
[1768948094307,1.0370895,2984.6,2983.8,0.8474893]
[1768948094505,1.0370895,2984.6,2983.9,0.85129621]
[1768948095413,0.7,2984.4,2983.9,0.85129621]
[1768948097136,0.001,2984.7,2984.4,0.15872536]
[1768948098716,1.05428035,2984.7,2984.3,5.46141522]
[1768948098917,1.05428035,2984.7,2984.2,0.16058494]
[1768948099113,1.05428035,2984.7,2984.2,0.71358494]
[1768948101746,1.05428035,2984.7,2984.2,0.553]
[1768948105142,1.05428035,2984.7,2984.2,0.7275709]
[1768948105346,1.05428035,2984.7,2984.1,0.553]
[1768948105518,1.05428035,2984.7,2984.1,0.7275709]
[1768948106942,1.05428035,2984.7,2984.3,0.17894836]
[1768948106943,0.001,2984.7,2984.3,0.17894836]
[1768948107348,1.05428035,2984.7,2984.3,0.17894836]
[1768948107650,1.05428035,2984.7,2984.2,5.46141522]
[1768948107817,1.05428035,2984.7,2984.2,0.553]
[1768948109048,1.05428035,2984.7,2984.2,0.73622583]
[1768948110760,0.7,2984.5,2984.2,0.73622583]
[1768948115774,0.7,2984.5,2984.4,0.002]
[1768948115951,0.701,2984.5,2984.4,0.002]
[1768948120083,0.701,2984.5,2984.4,0.20706424]
[1768948120084,0.60645888,2984.5,2984.4,0.20706424]
[1768948120244,0.001,2984.7,2984.4,0.002]
[1768948120979,0.001,2984.7,2984.5,0.00185113]
[1768948121346,0.001,2985.0,2984.6,0.553]
[1768948121546,0.001,2985.0,2984.7,0.00085113]
[1768948128869,0.001,2984.8,2984.7,0.00085113]
[1768948132370,0.001,2985.0,2984.7,0.02881546]
[1768948132675,0.001,2985.0,2984.6,9.36324584]
[1768948132676,0.001,2985.0,2984.9,5.45972584]
[1768948133496,0.001,2985.0,2984.9,5.49090015]
[1768948133897,0.001,2985.0,2984.9,5.45972584]
[1768948134777,0.001,2985.0,2984.9,6.01272584]
[1768948135999,0.001,2985.0,2984.9,9.36292182]
[1768948136205,1.04043371,2985.6,2985.0,0.03708957]
[1768948138081,1.04043371,2985.6,2984.9,6.01272584]
[1768948140601,1.04043371,2985.3,2984.9,6.01272584]
[1768948141697,1.04043371,2985.3,2984.7,0.553]
[1768948141909,1.04043371,2985.3,2984.5,1.00582256]
[1768948142068,1.04043371,2985.3,2984.6,0.553]
[1768948142968,1.04043371,2985.3,2984.4,6.4675484]
[1768948143209,1.04043371,2985.3,2984.4,5.46172584]
[1768948143500,1.04043371,2985.3,2984.5,0.553]
[1768948144470,1.04043371,2985.3,2984.4,7.0205484]
[1768948145280,1.04043371,2985.3,2984.4,6.01472584]
[1768948146110,1.04043371,2985.3,2984.4,7.0205484]
[1768948148415,1.04043371,2985.3,2984.4,6.4675484]
[1768948148589,1.04043371,2985.1,2984.5,0.553]
[1768948150598,1.04043371,2985.1,2984.2,0.03346819]
[1768948150897,1.04043371,2985.0,2984.2,0.03346819]
[1768948152225,1.04043371,2985.0,2984.2,0.03147227]
[1768948152727,1.04043371,2985.0,2984.2,0.02947635]
[1768948153021,1.04043371,2985.0,2984.2,0.02747839]
[1768948153226,3.35013548,2985.0,2984.2,0.02747839]
[1768948153390,3.35013548,2985.0,2983.9,0.98135599]
[1768948153391,1.04043371,2984.8,2983.9,0.98135599]
[1768948154012,1.04043371,2984.8,2983.7,1.55882256]
[1768948154214,1.04043371,2984.8,2983.7,1.00582256]
[1768948154499,1.04043371,2984.8,2983.8,1.00582256]
[1768948158333,1.09146591,2984.7,2983.8,1.00582256]
[1768948158634,1.09146591,2984.5,2983.8,1.00582256]
[1768948159338,1.09146591,2984.5,2983.6,1.13201417]
[1768948161539,1.09146591,2984.3,2983.6,1.13201417]
[1768948162335,1.09146591,2984.3,2983.5,0.0209092]
[1768948165210,1.09146591,2984.3,2983.7,0.002]
[1768948165411,1.09246591,2984.3,2983.5,0.01891328]
[1768948165741,1.09146591,2984.1,2983.5,0.02091328]
[1768948166649,1.09146591,2984.1,2983.2,1.075009]
[1768948167620,1.09146591,2983.9,2983.2,1.075009]
[1768948167855,1.09146591,2983.9,2983.0,1.13401417]
[1768948168165,1.09146591,2983.9,2983.0,0.002]
[1768948168449,0.553,2984.0,2982.7,1.12602232]
[1768948168450,1.09146591,2983.6,2982.7,1.12602232]
[1768948168657,1.09146591,2983.4,2982.7,1.12602232]
[1768948168950,1.09146591,2983.4,2982.2,1.13201417]
[1768948169122,1.09146591,2982.8,2982.1,19.69898037]
[1768948169324,1.09146591,2982.8,2981.5,3.35394849]
[1768948169325,1.09146591,2982.6,2981.5,1.13201417]
[1768948169553,1.09146591,2982.6,2981.3,0.17468475]
[1768948169554,0.17464027,2982.5,2981.3,0.96418543]
[1768948169755,0.65511918,2982.7,2981.6,1.13201417]
[1768948169756,0.553,2982.4,2981.6,1.13201417]
[1768948170257,0.553,2982.6,2981.9,1.13201417]
[1768948170430,0.1769057,2982.9,2981.9,1.13201417]
[1768948170431,0.1769057,2982.5,2981.9,1.13201417]
[1768948170630,0.553,2982.5,2981.9,1.13201417]
[1768948171161,6.70457752,2983.1,2981.7,1.13201417]
[1768948171356,9.38384309,2983.5,2982.5,1.13201417]
[1768948171358,0.17914511,2983.4,2982.5,1.13201417]
[1768948171538,0.17914511,2983.3,2982.5,1.13201417]
[1768948173232,0.17914511,2983.3,2982.6,1.13201417]
[1768948175429,0.18116123,2983.7,2982.6,1.13201417]
[1768948175631,0.73416123,2983.6,2982.8,1.13201417]
[1768948175831,0.18116123,2983.6,2982.8,1.13201417]
[1768948178652,0.18116123,2983.6,2982.8,1.13401417]
[1768948178847,0.16934782,2983.7,2982.8,1.13401417]
[1768948179364,0.001,2984.3,2982.9,1.13201417]
[1768948179563,0.001,2984.3,2984.1,1.13201417]
[1768948180860,0.16169662,2985.0,2984.1,1.13201417]
[1768948181162,0.001,2985.1,2984.4,1.13201417]
[1768948181463,0.001,2985.1,2984.5,1.13201417]
[1768948182540,0.001,2985.1,2984.7,1.13201417]
[1768948185455,0.001,2985.1,2984.7,3.35034652]
[1768948185644,0.001,2985.1,2984.8,1.04404416]
[1768948185839,0.001,2985.1,2984.9,1.04404416]
[1768948186041,0.001,2985.1,2985.0,1.04404416]
[1768948186268,0.001,2985.4,2985.0,1.04404416]
[1768948186560,0.13379992,2986.1,2985.3,1.04404416]
[1768948186762,0.13379992,2986.1,2985.5,1.04404416]
[1768948187063,0.13137201,2986.6,2985.5,1.04404416]
[1768948187234,0.13137201,2986.2,2985.1,0.553]
[1768948187740,0.13137201,2986.2,2985.1,1.59704416]
[1768948187948,0.13137201,2986.0,2985.1,1.59704416]
[1768948188652,0.12798348,2986.0,2985.2,1.04404416]
[1768948189053,0.55910978,2986.1,2985.7,1.04404416]
[1768948189259,0.12463387,2986.3,2985.3,5.45823823]
[1768948189571,0.12463387,2986.3,2985.4,1.04404416]
[1768948189765,0.12463387,2986.3,2985.4,1.59704416]
[1768948189968,0.12463387,2986.3,2985.4,0.553]
[1768948190157,0.12463387,2986.3,2985.5,1.04404416]
[1768948190361,0.12132273,2986.2,2985.5,1.04404416]
[1768948191457,0.001,2986.1,2985.5,1.04404416]
[1768948198176,0.001,2986.1,2985.7,1.04404416]
[1768948198377,6.33,2986.6,2985.8,1.04404416]
[1768948198378,0.09716668,2986.5,2985.8,1.04404416]
[1768948199484,0.00602854,2985.7,2985.6,1.04404416]
[1768948201405,6.33,2986.6,2985.7,1.04404416]
[1768948201572,0.69773452,2986.5,2985.7,1.04404416]
[1768948202311,1.04404415,2985.4,2984.4,1.04404416]
[1768948202505,1.09293631,2985.4,2984.7,1.04404416]
[1768948203462,1.00147366,2985.4,2984.7,1.04404416]
[1768948206521,1.00147366,2985.4,2984.8,1.04404416]
[1768948206718,0.552,2985.8,2984.9,1.04404416]
[1768948206921,0.552,2985.8,2985.1,1.04404416]
[1768948207226,0.001,2986.1,2985.1,1.04404416]
[1768948207385,0.001,2986.1,2985.2,1.04404416]
[1768948210911,0.001,2986.1,2985.3,1.04404416]
[1768948211136,1.06943883,2986.1,2985.3,1.04404416]
[1768948212509,0.001,2986.1,2985.4,1.04404416]
[1768948212754,0.001,2986.1,2985.6,1.04404416]
[1768948214750,0.001,2985.9,2985.6,1.04404416]
[1768948214924,0.001,2985.9,2985.6,3.34940643]
[1768948215116,0.001,2985.9,2985.7,1.05067179]
[1768948228677,0.001,2985.9,2985.6,1.05067179]
[1768948231068,0.001,2985.9,2985.1,3.34994874]
[1768948231069,1.01072554,2985.9,2985.1,0.553]
[1768948231274,0.10131004,2985.5,2985.2,1.05067179]
[1768948232074,1.11103558,2985.5,2984.9,0.002]
[1768948237686,1.11103558,2985.5,2984.7,1.05067179]
[1768948237988,1.00972554,2985.3,2984.7,1.04867383]
[1768948238349,1.00972554,2985.3,2984.6,1.05267179]
[1768948239191,1.00972554,2985.3,2984.6,0.002]
[1768948239697,1.01072554,2985.3,2984.6,0.002]
[1768948241168,1.01072554,2985.3,2984.6,1.05267179]
[1768948243593,1.01072554,2985.3,2984.6,0.002]
[1768948243755,0.99956663,2985.2,2984.6,0.002]
[1768948243950,0.99956663,2985.0,2984.2,1.05067179]
[1768948245759,0.99956663,2985.0,2984.0,1.05047286]
[1768948248158,0.9877036,2984.9,2984.0,1.05047286]
[1768948248358,0.9877036,2984.7,2984.0,1.05047286]
[1768948251598,0.9877036,2984.7,2984.2,0.002]
[1768948251773,0.9877036,2984.7,2984.0,1.05247286]
[1768948255996,0.9877036,2984.7,2984.0,0.002]
[1768948257699,0.9877036,2984.7,2984.0,1.05247286]
[1768948260407,0.96947114,2985.0,2984.0,1.05247286]
[1768948260604,0.96947114,2984.9,2984.0,1.05247286]
[1768948261980,0.552,2985.1,2984.0,1.05247286]
[1768948262176,1.51867064,2985.1,2984.0,1.05247286]
[1768948262376,0.96667064,2985.0,2984.0,1.05247286]
[1768948262573,0.96767064,2985.3,2984.2,1.05047286]
[1768948262907,0.96767064,2985.3,2984.5,1.05047286]
[1768948263771,0.001,2984.7,2984.5,1.05047286]
[1768948283922,0.69186097,2985.1,2984.2,0.555]
[1768948284091,0.69186097,2985.1,2984.3,1.00708027]
[1768948286222,0.68861592,2985.3,2984.3,1.00708027]
[1768948286395,1.44477751,2985.2,2984.3,1.00708027]
[1768948286591,0.68761592,2985.1,2984.3,1.00708027]
[1768948289020,0.68555842,2984.9,2984.3,1.00708027]
[1768948289417,0.001,2984.9,2984.3,1.00708027]
[1768948291914,0.001,2984.9,2984.4,1.00708027]
[1768948293132,0.001,2984.9,2984.5,1.00708027]
[1768948293309,0.001,2984.9,2984.7,1.00708027]
[1768948294923,0.001,2984.9,2984.2,0.002]
[1768948295128,0.97481798,2984.9,2984.4,1.00708027]
[1768948295332,0.97481798,2984.9,2984.3,1.00708027]
[1768948299139,0.97481798,2984.9,2984.2,0.002]
[1768948299320,0.97481798,2984.9,2984.2,0.555]
[1768948299525,0.97481798,2984.9,2984.2,1.56208027]
[1768948299926,0.97481798,2984.9,2984.3,1.00708027]
[1768948300640,0.97481798,2984.9,2984.5,0.002]
[1768948300842,0.701,2984.7,2984.5,0.002]
[1768948305052,0.98237101,2984.6,2984.2,1.00828787]
[1768948306243,0.701,2984.7,2984.2,1.00828787]
[1768948306728,1.68337101,2984.7,2984.2,1.00828787]
[1768948310449,0.701,2984.7,2984.2,1.00828787]
[1768948311520,0.001,2984.7,2984.2,1.00828787]
[1768948314255,0.001,2984.9,2984.3,1.00628787]
[1768948314447,0.001,2984.9,2984.4,0.002]
[1768948314641,0.001,2984.9,2984.5,1.00628787]
[1768948318456,0.98337101,2984.9,2984.5,1.00628787]
[1768948318830,0.001,2984.9,2984.5,1.00628787]
[1768948319347,0.98237101,2984.8,2984.4,1.00828787]
[1768948319554,0.98337101,2984.9,2984.4,1.00828787]
[1768948321173,0.001,2984.9,2984.4,1.00828787]
[1768948321473,0.98237101,2984.8,2984.4,1.00828787]
[1768948321665,0.98237101,2984.8,2984.4,0.002]
[1768948322177,0.98237101,2984.8,2984.4,1.00828787]
[1768948322679,0.001,2984.9,2984.4,1.00828787]
[1768948326380,0.98337101,2984.9,2984.4,1.00828787]
[1768948327098,0.001,2984.9,2984.4,1.00828787]
[1768948327981,0.001,2984.7,2984.4,1.00828787]
[1768948340307,0.001,2984.7,2984.6,0.002]
[1768948347208,0.001,2984.7,2984.6,0.99956584]
[1768948347806,0.001,2984.7,2984.6,0.002]
[1768948349613,1.01652147,2984.7,2984.6,0.002]
[1768948352078,0.001,2984.7,2984.6,0.002]
[1768948352486,1.01652147,2984.7,2984.6,0.002]
[1768948357608,1.01652147,2984.7,2984.2,0.002]
[1768948357785,1.01652147,2984.7,2984.1,0.99557603]
[1768948358485,0.7,2984.5,2984.1,0.99557603]
[1768948360109,1.01552147,2984.6,2984.1,0.99557603]
[1768948362496,1.01652147,2984.7,2984.1,0.99557603]
[1768948364419,0.001,2984.5,2984.1,0.99557603]
[1768948373103,0.001,2984.5,2984.1,0.553]
[1768948373303,0.001,2984.5,2984.2,0.97944874]
[1768948376132,0.001,2984.3,2984.2,0.97944874]
[1768948376439,0.001,2984.5,2984.2,0.97944874]
[1768948379739,0.001,2984.5,2984.1,0.553]
[1768948379740,0.94939734,2984.5,2984.0,0.98144874]
[1768948379929,0.94939734,2984.5,2984.1,0.553]
[1768948380123,0.94939734,2984.5,2984.1,1.53244874]
[1768948380437,0.001,2984.5,2984.2,0.97944874]
[1768948385141,0.94939734,2984.5,2984.1,0.553]
[1768948385341,0.94939734,2984.5,2984.0,0.002]
[1768948385533,0.94939734,2984.5,2984.0,0.98144874]
[1768948385734,0.94839734,2984.0,2983.2,0.002]
[1768948386034,0.94839734,2984.0,2983.3,1.15432091]
[1768948386241,0.94839734,2984.0,2983.3,0.97944874]
[1768948389023,0.94839734,2984.0,2983.4,1.53244874]
[1768948389222,0.94839734,2984.0,2983.5,0.97944874]
[1768948391418,0.94839734,2984.0,2983.2,0.98144874]
[1768948391619,0.94839734,2984.0,2983.3,0.553]
[1768948394454,0.94839734,2984.0,2983.3,1.53244874]
[1768948394767,0.94839734,2984.0,2983.2,0.002]
[1768948394963,0.94839734,2984.0,2981.5,1.15404165]
[1768948394964,0.28627631,2983.0,2981.5,1.15404165]
[1768948395149,0.28627631,2983.0,2981.6,1.51496982]
[1768948395150,0.28600007,2982.8,2981.6,1.51496982]
[1768948395365,0.28600007,2982.8,2981.6,6.97777661]
[1768948395755,0.28600007,2982.8,2981.6,1.51496982]
[1768948396168,0.285727,2982.5,2981.6,1.51496982]
[1768948396489,3.35277945,2982.6,2981.0,6.42477661]
[1768948396490,0.285727,2982.3,2981.0,6.42477661]
[1768948396779,0.285727,2982.3,2981.1,0.553]
[1768948397761,0.285727,2982.3,2981.2,0.553]
[1768948397958,0.28545707,2982.1,2981.3,0.052]
[1768948398160,0.28545707,2982.1,2979.1,1.65512292]
[1768948398161,0.28545707,2982.1,2978.0,0.2]
[1768948398162,10.06339941,2981.1,2978.0,0.2]
[1768948398361,10.06339941,2981.1,2979.0,0.96196982]
[1768948398362,0.04552139,2980.0,2979.0,0.96196982]
[1768948398559,0.3615703,2979.0,2977.1,0.00277669]
[1768948398875,0.3615703,2979.0,2974.8,0.3354]
[1768948398876,0.88947247,2977.1,2975.9,4.432903]
[1768948399068,0.91882067,2976.1,2973.8,0.96196982]
[1768948399264,1.67657998,2978.1,2973.1,3.36981915]
[1768948399265,0.91882067,2975.7,2973.9,1.51496982]
[1768948399447,0.91882067,2975.3,2973.4,0.96196982]
[1768948399647,0.91882067,2975.3,2974.2,2.588305]
[1768948399847,0.91882067,2975.3,2974.3,5.72163729]
[1768948400076,0.91882067,2975.3,2974.3,0.2588305]
[1768948400301,0.91882067,2975.3,2973.1,0.00639219]
[1768948400302,0.2588305,2974.3,2972.3,3.49816831]
[1768948400587,13.44405251,2975.3,2970.0,0.59397683]
[1768948400588,2.59031028,2972.1,2970.0,0.59397683]
[1768948400799,10.92561358,2972.7,2969.2,0.00191909]
[1768948400800,0.17554472,2970.7,2969.2,0.00191909]
[1768948400999,3.342827,2970.5,2969.2,0.00191909]
[1768948401201,0.07145082,2970.4,2968.5,4.47605912]
[1768948401356,0.07145082,2970.4,2967.4,0.07231936]
[1768948401357,8.434378,2970.1,2967.4,0.07231936]
[1768948401681,0.09211185,2970.2,2965.7,0.96196982]
[1768948401682,0.05,2968.3,2965.7,0.96196982]
[1768948401883,3.041442,2968.1,2965.7,0.96196982]
[1768948402084,0.05,2968.3,2964.7,4.65824999]
[1768948402085,19.245842,2967.8,2964.7,4.65824999]
[1768948402294,4.04982427,2969.4,2964.7,4.65824999]
[1768948402295,0.91882067,2966.9,2964.7,2.32432397]
[1768948402478,4.85164967,2966.6,2964.7,2.32432397]
[1768948402658,0.05,2967.3,2964.7,0.27957144]
[1768948403006,10.50864861,2967.6,2961.4,6.76779442]
[1768948403007,0.45727974,2964.7,2961.4,6.76779442]
[1768948403157,0.45727974,2964.7,2960.1,1.01228748]
[1768948403158,6.76779442,2963.4,2960.8,2.17636997]
[1768948403353,6.76779442,2963.4,2958.6,3.3799552]
[1768948403354,5.733717,2958.9,2957.9,0.96196982]
[1768948403604,30.0,2960.7,2958.1,0.96196982]
[1768948403819,0.553,2960.6,2956.3,0.96196982]
[1768948404088,6.76779442,2960.0,2953.4,1.67543531]
[1768948404321,0.128,2958.0,2954.2,3.38501117]
[1768948404476,0.128,2957.8,2954.3,0.553]
[1768948404682,0.128,2957.8,2954.2,3.38501117]
[1768948404683,0.128,2956.9,2953.2,0.553]
[1768948405006,0.128,2956.7,2953.2,3.38615738]
[1768948405159,6.76779442,2956.3,2953.1,4.47566917]
[1768948405355,13.071915,2956.0,2952.1,10.15520611]
[1768948405559,13.071915,2956.0,2942.5,0.071]
[1768948405560,0.128,2954.5,2950.9,3.388683]
[1768948405856,0.128,2954.5,2949.3,5.8271867]
[1768948405857,0.128,2954.5,2947.3,25.45572059]
[1768948405858,0.85922851,2950.4,2947.3,25.45572059]
[1768948406060,4.0,2954.1,2947.3,1.32280459]
[1768948406061,6.76779442,2947.7,2947.3,1.32280459]
[1768948406301,2.80196833,2950.3,2937.0,3.40481419]
[1768948406302,0.53308631,2947.0,2937.0,3.40481419]
[1768948406459,3.39305103,2947.2,2937.9,1.69313222]
[1768948406460,6.76696517,2943.6,2937.9,1.69313222]
[1768948406653,0.554,2943.5,2938.5,0.05]
[1768948406894,6.76779442,2940.8,2937.8,10.21172304]
[1768948407092,6.76779442,2938.9,2935.6,0.00298702]
[1768948407258,0.95714217,2940.7,2931.3,1.71531136]
[1768948407259,0.05,2939.0,2931.3,1.71531136]
[1768948407456,0.51665699,2938.6,2934.2,3.0620468]
[1768948407795,0.51665699,2938.6,2931.2,0.3778362]
[1768948407796,0.51665699,2938.6,2931.5,1.77842177]
[1768948407797,6.76779442,2936.2,2931.5,1.77842177]
[1768948407986,6.76779442,2933.0,2931.6,3.41104328]
[1768948408187,4.71784986,2938.5,2929.1,1.76045569]
[1768948408188,6.76779442,2933.6,2929.1,1.76045569]
[1768948408387,1.27981551,2936.1,2927.4,1.749581]
[1768948408388,6.76779442,2931.3,2927.4,1.749581]
[1768948408577,30.0,2929.1,2925.1,1.72964596]
[1768948408778,30.0,2929.1,2924.0,4.375]
[1768948408779,0.87344992,2931.2,2929.0,6.80752026]
[1768948408969,6.76779442,2931.1,2927.7,1.78647377]
[1768948409169,6.76779442,2930.3,2926.7,3.4167091]
[1768948409428,2.67056156,2931.0,2923.1,0.79455369]
[1768948409728,23.329154,2929.8,2924.4,1.71062944]
[1768948409873,0.71485932,2930.9,2926.2,6.76779442]
[1768948410071,0.05,2932.8,2924.2,20.45824934]
[1768948410072,11.993,2930.8,2924.2,13.67886604]
[1768948410282,11.993,2930.8,2922.3,0.05]
[1768948410283,0.40815984,2930.8,2922.3,0.05]
[1768948410495,0.40815984,2930.8,2923.4,10.31953491]
[1768948410496,0.33072356,2928.9,2923.4,10.31953491]
[1768948410668,2.07125485,2930.7,2923.4,6.8413491]
[1768948410669,6.76779442,2926.5,2923.4,6.8413491]
[1768948410875,6.76779442,2926.5,2921.7,0.26977126]
[1768948410876,6.76779442,2924.0,2912.2,1.521]
[1768948411083,1.45662478,2926.4,2916.5,3.42870622]
[1768948411084,1.68603598,2926.4,2916.5,3.42870622]
[1768948411410,6.76779442,2920.6,2916.5,9.43837002]
[1768948411611,4.0,2923.8,2916.6,0.05]
[1768948411793,4.0,2923.8,2916.6,1.75613049]
[1768948412095,4.0,2923.8,2916.5,10.28611866]
[1768948412096,0.83542453,2923.7,2916.5,3.42870622]
[1768948412304,10.41592805,2923.6,2912.6,1.17942775]
[1768948412480,0.13892172,2915.0,2908.7,1.71713094]
[1768948412664,29.94328964,2914.7,2911.4,0.45674589]
[1768948412865,1.7119377,2920.3,2910.5,0.05]
[1768948413098,0.05,2919.9,2911.0,1.72943939]
[1768948413298,1.76972837,2922.7,2910.9,14.5]
[1768948413299,6.76321972,2926.7,2920.2,0.39435166]
[1768948413476,104.0,2939.4,2919.8,6.76321972]
[1768948413477,0.05,2920.2,2919.8,6.76321972]
[1768948413794,0.05,2920.2,2917.5,0.96196982]
[1768948413795,0.20552703,2926.1,2922.2,9.292917]
[1768948413973,6.82170816,2931.9,2926.0,6.76321972]
[1768948414175,6.82170816,2931.9,2927.9,0.96196982]
[1768948414176,9.76129818,2930.7,2927.9,0.96196982]
[1768948414399,9.003624,2932.4,2930.7,0.96196982]
[1768948414604,0.91882067,2938.2,2930.7,0.96196982]
[1768948414605,3.31125717,2934.9,2932.6,6.83336937]
[1768948414804,0.05,2937.3,2932.0,0.07014965]
[1768948414805,3.40611056,2935.9,2933.5,0.07014965]
[1768948415094,3.40611056,2935.9,2932.0,0.07014965]
[1768948415095,3.40287216,2938.7,2935.7,6.2102024]
[1768948415274,0.0209092,2938.8,2933.7,2.31214936]
[1768948415275,2.760685,2937.8,2933.7,2.31214936]
[1768948415480,10.22920969,2938.8,2935.3,0.45073824]
[1768948415678,10.22920969,2938.8,2934.5,0.76469637]
[1768948415679,0.17616305,2931.2,2926.4,7.5907371]
[1768948415868,1.72750477,2938.3,2931.1,6.76321972]
[1768948416068,0.01577,2933.5,2933.0,6.76321972]
[1768948416269,10.77415136,2938.8,2933.5,0.01577]
[1768948416270,0.012,2937.9,2933.5,0.01577]
[1768948416469,0.012,2937.9,2932.1,0.38503473]
[1768948416470,0.05,2929.4,2918.4,1.76610892]
[1768948416675,17.5775384,2937.8,2929.3,5.83505772]
[1768948416676,0.17609817,2937.2,2929.3,5.83505772]
[1768948416866,1.7099787,2937.6,2930.0,0.05]
[1768948417087,2.367836,2933.6,2930.9,6.76321972]
[1768948417291,2.367836,2933.6,2927.5,1.53]
[1768948417292,5.836154,2933.4,2930.0,6.76321972]
[1768948417513,1.72808318,2936.6,2931.8,0.05112823]
[1768948417671,0.01584,2937.6,2933.1,0.05112823]
[1768948417672,8.558468,2937.5,2933.1,0.05112823]
[1768948417874,0.01584,2937.6,2934.5,0.05112823]
[1768948418098,0.01584,2937.6,2933.7,0.05112823]
[1768948418099,1.02285047,2938.3,2933.3,0.50628912]
[1768948418266,1.02285047,2938.3,2934.1,0.47795579]
[1768948418474,1.02285047,2938.3,2934.3,0.05449498]
[1768948418704,0.91882067,2944.1,2935.5,0.05449498]
[1768948418705,0.18569792,2938.9,2935.5,0.05449498]
[1768948418871,0.18569792,2938.9,2934.4,0.26583165]
[1768948419072,0.18569792,2938.9,2935.3,6.76321972]
[1768948419269,6.218016,2938.8,2933.8,1.01985891]
[1768948419466,6.218016,2938.8,2937.9,6.76321972]
[1768948419467,3.408943,2938.8,2937.9,6.76321972]
[1768948419671,3.64443,2938.8,2938.7,0.00070372]
[1768948419908,30.0,2937.8,2933.5,17.0444861]
[1768948420090,0.078804,2937.9,2933.5,17.0444861]
[1768948420091,0.61163105,2937.9,2933.5,6.81779444]
[1768948420320,29.525,2939.6,2933.5,6.81779444]
[1768948420321,0.012,2942.3,2938.1,1.287]
[1768948420482,0.86596476,2945.2,2940.8,6.76321972]
[1768948420483,6.453554,2942.2,2940.8,6.76321972]
[1768948420687,0.012,2943.1,2941.5,6.76321972]
[1768948420688,10.276673,2943.0,2941.5,6.76321972]
[1768948421838,29.9472,2945.0,2942.7,8.020421]
[1768948422005,15.248622,2945.0,2940.3,0.96196982]
[1768948422207,3.39581635,2944.8,2938.6,0.96196982]
[1768948422536,1.74217,2944.4,2938.6,0.96196982]
[1768948422848,0.46591176,2944.9,2941.9,6.76321972]
[1768948423058,0.46591176,2944.9,2940.4,4.36286765]
[1768948423059,30.0,2945.1,2943.6,6.76321972]
[1768948423332,3.1759145,2945.7,2945.1,0.4237673]
[1768948423539,2.15690315,2945.7,2945.1,6.76321972]
[1768948423682,0.91882067,2949.8,2945.1,7.43954169]
[1768948423889,0.012,2950.1,2948.2,5.57793095]
[1768948424089,0.012,2950.1,2949.1,6.76321972]
[1768948424330,0.012,2950.1,2947.3,0.07473207]
[1768948424331,10.3499,2952.4,2950.0,6.76321972]
[1768948424484,10.3499,2952.4,2949.2,10.17225009]
[1768948424485,3.849521,2951.5,2949.2,0.27046603]
[1768948424687,0.03144667,2949.1,2948.3,0.012]
[1768948424914,0.03144667,2949.1,2943.8,0.557]
[1768948424915,0.03144667,2949.1,2945.7,6.76321972]
[1768948425120,2.813205,2949.0,2945.8,3.39466358]
[1768948425343,0.01575772,2950.0,2948.2,1.291235]
[1768948425529,0.01575772,2950.0,2947.9,6.76321972]
[1768948425820,2.36558,2949.9,2948.0,0.67632197]
[1768948425994,0.01575772,2950.0,2947.1,6.76321972]
[1768948426200,0.01575772,2950.0,2947.9,6.76321972]
[1768948426422,8.790961,2951.5,2949.3,6.76321972]
[1768948426647,2.15233502,2951.5,2951.0,6.76321972]
[1768948426968,0.67888848,2952.4,2951.7,0.46402638]
[1768948427115,11.418964,2952.3,2951.0,0.57402403]
[1768948427463,0.07473207,2951.4,2947.8,14.5]
[1768948427621,0.07473207,2949.8,2946.3,6.76321972]
[1768948427963,0.07473207,2948.2,2945.1,0.67632197]
[1768948428238,0.07473207,2949.0,2944.8,6.76321972]
[1768948428239,11.370518,2949.5,2946.4,6.76321972]
[1768948428408,0.07473207,2948.0,2945.3,0.43987528]
[1768948428609,0.07473207,2948.2,2944.8,6.76321972]
[1768948428847,0.07473207,2945.6,2943.2,6.76321972]
[1768948429056,0.07473207,2945.6,2942.5,6.76321972]
[1768948429057,0.07473207,2944.4,2942.5,6.76321972]
[1768948429261,0.07473207,2944.4,2942.6,6.79671038]
[1768948429409,9.14439585,2946.0,2939.5,1.63004423]
[1768948429610,6.99679002,2946.9,2938.4,6.76321972]
[1768948429611,9.14439585,2943.7,2938.4,6.76321972]
[1768948429852,0.012,2939.7,2935.8,0.00298702]
[1768948430008,6.76321972,2942.8,2937.2,6.76321972]
[1768948430009,18.90885585,2942.6,2937.2,6.76321972]
[1768948430213,18.90885585,2942.6,2935.8,0.00298702]
[1768948430214,0.55780251,2939.3,2937.3,0.43445266]
[1768948430413,0.55780251,2939.3,2935.8,0.00298702]
[1768948430415,3.674215,2939.0,2935.8,0.00298702]
[1768948430636,7.46297258,2939.2,2935.6,0.01194815]
[1768948430637,4.233049,2937.8,2935.6,0.01194815]
[1768948430855,3.211823,2938.8,2935.6,0.01194815]
[1768948431161,14.7625,2941.5,2937.8,6.76321972]
[1768948431309,9.14439585,2942.8,2938.8,7.84229088]
[1768948431508,9.14439585,2942.8,2937.6,0.33076167]